Cogmind - Beta 9.6 @@@ ROGUE MODE // 2020.05.31 @ 20:10:04 Player: pGoos Result: Destroyed by S-10 Pest with Light Assault Rifle Performance ------------- Evolutions (1) 500 Regions Visited (2) 400 Robots Destroyed (4) 20 Value Destroyed (123) 123 Prototype IDs (0) 0 Alien Tech Used (0) 0 Bonus (200) 200 TOTAL SCORE: 1243 Bonus ------- Pacifist 200 Cogmind --------- Core Integrity 0/400 Matter 267/300 Energy 123/125 System Corruption 0% Temperature Cool (2) Movement Flying (40) Location -9/Materials Parts ------- > --- POWER (1) -------- Light Ion Engine > --- PROPULSION (4) --- Flight Unit > --- UTILITY (2) ------ Seismic Analyzer > --- WEAPON (2) ------- (None) > --- INVENTORY (4) ---- Small Storage Unit Medium Storage Unit Large Storage Unit Spread Laser Peak State ------------ > --- POWER ------------ Light Ion Engine > --- PROPULSION ------- Backup Propulsion I Backup Propulsion I > --- UTILITY ---------- (None) > --- WEAPON ----------- Backup Laser I Backup Laser I > --- INVENTORY -------- Small Storage Unit Medium Storage Unit Large Storage Unit Light Assault Rifle [Rating: 5] Favorites ----------- Power Light Ion Engine Engine Light Ion Engine Propulsion Backup Propulsion I Wheel Wheel Hover Unit Backup Propulsion I Flight Unit Flight Unit Utility Small Storage Unit Storage Small Storage Unit Processor Seismic Analyzer Weapon Light Assault Rifle Energy Gun Backup Laser I Ballistic Gun Light Assault Rifle Build | -11 -10 -9 ------- Run | Scr Mat Mat Slots Evolved 2 | . . 2 Power . | . . . Propulsion 2 | . . 2 Utility . | . . . Weapon . | . . . Parts Attached 16 | 4 . 12 Power 3 | 1 . 2 Engine 3 | 1 . 2 Core . | . . . Reactor . | . . . Propulsion 3 | 2 . 1 Treads . | . . . Leg . | . . . Wheel 2 | 2 . . Hover . | . . . Flight 1 | . . 1 Utility 8 | 1 . 7 Device . | . . . Storage 7 | 1 . 6 Processor 1 | . . 1 Hackware . | . . . Protection . | . . . Artifact . | . . . Weapon 2 | . . 2 Energy Gun . | . . . Energy Cannon . | . . . Ballistic Gun 2 | . . 2 Ballistic Cannon . | . . . Launcher . | . . . Special Weapon . | . . . Impact Weapon . | . . . Slashing Weapon . | . . . Piercing Weapon . | . . . Special Melee Weapon . | . . . Unidentified Prototypes . | . . . Parts Lost 5 | . . 5 Power 2 | . . 2 Propulsion 2 | . . 2 Utility . | . . . Weapon 1 | . . 1 Highest Loss Streak 3 | . . 3 Average Slot Usage (%) 26 | . 14 30 Engine 8 | . 14 6 Hover 5 | . . 7 Storage 6 | . . 8 Processor 1 | . . 1 Ballistic Gun 3 | . . 4 Naked Turns 30 | . . 30 Heaviest Build 24 | 7 3 24 Greatest Support 20 | 20 3 12 Greatest Overweight (x) 7 | . . 7 Average Overweight (x) . | . . . Largest Inventory Capacity 14 | 6 4 14 Average Capacity 5 | 4 4 6 Most Carried 4 | 2 4 4 Average Carried 2 | . 2 2 Final Capacity 4 | 4 4 4 Final Carried 4 | 2 4 4 Class Distribution -------------------- 100% | Mutant Dominant Class ---------------- Mutant | -10/Materials Mutant | -9/Materials Resources | -11 -10 -9 ----------- Run | Scr Mat Mat Matter Collected 314 | 202 . 112 Remotely . | . . . Salvage Created 145 | . . 145 Parts 10 | . . 10 Haulers Intercepted . | . . . Recyclers Shooed . | . . . Parts Field Recycled . | . . . Retrieved Matter . | . . . Parts Self-Destructed . | . . . Prevented . | . . . Kills | -11 -10 -9 ------- Run | Scr Mat Mat Combat Hostiles Destroyed 4 | . . 4 Melee 1 | . . 1 Guns 3 | . . 3 Classes Destroyed 3 | . . 3 Swarmer 1 | . . 1 Grunt 2 | . . 2 Sentry 1 | . . 1 Best Kill Streak 3 | . . 3 Combat Bots Only 3 | . . 3 Max Kills in Single Turn 1 | . . 1 Gunslinging . | . . . Exploded . | . . . Melee 1 | . . 1 Uniques/NPCs Destroyed . | . . . Combat | -11 -10 -9 -------- Run | Scr Mat Mat Damage Taken 841 | . 11 830 Core 412 | . 11 401 Absorbed by Shields . | . . . Core Remaining (%) 97 | 100 95 . Volleys Fired 37 | . . 37 Largest 1 | . . 1 Hottest 20 | . . 20 Shots Fired 37 | . . 37 Gun 37 | . . 37 Cannon . | . . . Launcher . | . . . Special . | . . . Kinetic 37 | . . 37 Thermal . | . . . Explosive . | . . . Electromagnetic . | . . . Robot Hit Streak 8 | . . 8 Robot Miss Streak 3 | . . 3 Penetration Max . | . . . Secondary Targets . | . . . Shots Hit Robots 25 | . . 25 Core Hits 14 | . . 14 Critical Hits . | . . . Critical Kills . | . . . Critical Parts Destroyed . | . . . Melee Attacks . | . . . Impact . | . . . Slashing . | . . . Piercing . | . . . Sneak Attacks . | . . . Combat Hostiles . | . . . Follow-up Attacks . | . . . Damage Inflicted 238 | . . 238 Guns 209 | . . 209 Cannons . | . . . Explosions . | . . . Melee . | . . . Ramming 29 | . . 29 Kinetic 209 | . . 209 Thermal . | . . . Explosive . | . . . Electromagnetic . | . . . Impact . | . . . Slashing . | . . . Piercing . | . . . Highest Corruption 2 | . 2 . Average Corruption 1 | . 1 . Corruption Purged . | . . . Overload Shots . | . . . Overflow Damage . | . . . Projectiles . | . . . Explosions . | . . . Melee . | . . . Knockbacks . | . . . Impact . | . . . Kinetic . | . . . Secondary . | . . . Self-Inflicted Damage 13 | . . 13 Shots . | . . . Rammed 7 | . . 7 Targets Rammed 7 | . . 7 Kicked . | . . . Crushed . | . . . Highest Temperature 5 | . . 5 Average Temperature 4 | . . 4 Received Heat Transfer 381 | . 6 375 Siege Activations . | . . . Robots Corrupted . | . . . Combat Hostiles . | . . . Parts Fried . | . . . Impact Corruptions . | . . . Robots Melted . | . . . Combat Hostiles . | . . . Parts Melted . | . . . Heat Transferred . | . . . Parts Sabotaged . | . . . Parts Stolen . | . . . Parts Stripped . | . . . Power Chain Reactions . | . . . Missiles Intercepted . | . . . Alert | -11 -10 -9 ------- Run | Scr Mat Mat Peak Influence 111 | . 15 111 Average Influence 35 | . 8 47 Maximum Alert Level . | . . . Low Security (%) 100 | 100 100 100 Level 1 . | . . . Level 2 . | . . . Level 3 . | . . . Level 4 . | . . . Level 5 . | . . . High Security . | . . . Max Security . | . . . Squads Dispatched 3 | . 1 2 Investigation 2 | . 1 1 Extermination . | . . . Reinforcement 1 | . . 1 Assault . | . . . Garrison . | . . . Intercept . | . . . Construction Impeded . | . . . Haulers Reinforced . | . . . Stealth | -11 -10 -9 --------- Run | Scr Mat Mat Distress Signals 1 | . 1 . Communications Jammed . | . . . Distress Signals . | . . . Times Spotted 21 | . 3 18 Peak Tracking Total 8 | . 5 8 Tactical Retreats 2 | . . 2 Traps | -11 -10 -9 ------- Run | Scr Mat Mat Traps Triggered 3 | . 3 . Indirectly . | . . . Trap Hack Attempts . | . . . Triggered . | . . . Disarmed . | . . . Reprogrammed . | . . . Reused . | . . . Traps Extracted . | . . . Installed . | . . . Triggered . | . . . Machines | -11 -10 -9 ---------- Run | Scr Mat Mat Machines Disabled . | . . . Max in Single Turn . | . . . Machines Sabotaged . | . . . Garrisons Compromised . | . . . Overloaded Fab Kills . | . . . Fab Network Shutdowns . | . . . Hacking | -11 -10 -9 --------- Run | Scr Mat Mat Machines Accessed 4 | . 1 3 Terminals 2 | . 1 1 Fabricators . | . . . Repair Stations 2 | . . 2 Recycling Units . | . . . Scanalyzers . | . . . Garrison Access . | . . . Total Hacks 9 | . 3 6 Successful 2 | . 1 1 Failed 7 | . 2 5 Catastrophic . | . . . Database Lockouts . | . . . Manual . | . . . Terminals 5 | . 3 2 Fabricators . | . . . Repair Stations 4 | . . 4 Recycling Units . | . . . Scanalyzers . | . . . Garrison Access . | . . . Terminal Hacks 1 | . 1 . Unreport Threat 1 | . 1 . Fabricator Hacks . | . . . Repair Station Hacks 1 | . . 1 Refit 1 | . . 1 Recycling Unit Hacks . | . . . Scanalyzer . | . . . Garrison Access Hacks . | . . . Unauthorized Hacks . | . . . Terminals . | . . . Fabricators . | . . . Repair Stations . | . . . Recycling Units . | . . . Scanalyzers . | . . . Garrison Access . | . . . Data Cores Recovered . | . . . Used . | . . . Hacking Detections 3 | . 1 2 Full Trace Events 1 | . . 1 Feedback Events . | . . . Feedback Blocked . | . . . Robot Schematics Acquired . | . . . Robots Built . | . . . Matter . | . . . Time . | . . . Total Robot Build Rating . | . . . Part Schematics Acquired . | . . . Parts Built . | . . . Matter . | . . . Time . | . . . Total Part Build Rating . | . . . Parts Repaired . | . . . Time . | . . . Parts Recycled . | . . . Recycled Matter . | . . . Retrieved Matter . | . . . Retrieved Components . | . . . Parts Scanalyzed . | . . . Part Schematics Acquired . | . . . Parts Damaged . | . . . Bothacking | -11 -10 -9 ------------ Run | Scr Mat Mat Used RIF Installer . | . . . Robots Hacked . | . . . Non-combat . | . . . Combat . | . . . Robot Hacks Applied . | . . . Relay Couplers Released . | . . . Robots Rewired . | . . . Allies Hacked . | . . . Hacks Repelled . | . . . Allies | -11 -10 -9 -------- Run | Scr Mat Mat Total Allies . | . . . Largest Group . | . . . Highest-Rated Group . | . . . Highest-Rated Ally . | . . . Total Orders . | . . . Ally Attacks . | . . . Total Damage . | . . . Kills . | . . . Allies Corrupted . | . . . Allies Melted . | . . . Intel | -11 -10 -9 ------- Run | Scr Mat Mat Robot Analysis Total . | . . . Derelict Logs Recovered . | . . . Drone Launches . | . . . Drone Recoveries . | . . . Exploration | -11 -10 -9 ------------- Run | Scr Mat Mat Turns Passed 408 | 32 88 288 Spaces Moved 471 | 37 171 263 Core 329 | 28 171 130 Treads . | . . . Legs . | . . . Wheels 9 | 9 . . Hover 67 | . . 67 Flight 66 | . . 66 Fastest Speed 40 | 50 50 40 Average Speed 58 | 57 50 64 Slowest Speed 400 | 80 50 400 Overloaded Moves . | . . . Propulsion Burnouts . | . . . Robots Hopped 7 | . . 7 Cave-ins Triggered . | . . . Exploration Rate (%) 18 | 4 30 22 Regions Visited 2 Branch Regions . Pre-discovered Areas . | . . . Known Exits Taken . | . . . Unknown Exits Taken 2 | 1 1 . Scrap Searched . | . . . Spaces Dug . | . . . Terrain Destroyed . | . . . Melee . | . . . Projectile . | . . . AOE . | . . . Actions | -11 -10 -9 --------- Run | Scr Mat Mat Total 561 | 48 172 341 Wait 20 | . . 20 Move 456 | 36 170 250 Hop 6 | . . 6 Pick Up 5 | 2 2 1 Fast Attach 8 | 4 . 4 Attach 7 | . . 7 Detach 9 | 3 . 6 Swap 1 | . . 1 Drop 5 | 3 . 2 Fire 37 | . . 37 Melee . | . . . Ram 7 | . . 7 Kick . | . . . Crush . | . . . Escape Stasis . | . . . Rewire . | . . . Trap . | . . . Miscellaneous . | . . . Route ------- -11/Scrapyard -10/Materials -9/Materials History --------- Turn | Location | Event 5 | -11/Scrapyard | Discovered new exit (range 15) 33 | -11/Scrapyard | Entered Materials 106 | -10/Materials | Discovered new exit (range 11) 121 | -10/Materials | Entered another Materials area 121 | -9/Materials | Evolved 2 slots: Propulsion x2 290 | -9/Materials | Lost 3 parts (1p2n) 308 | -9/Materials | Build established: Mutant 329 | -9/Materials | Core integrity fell below 50% 380 | -9/Materials | Core integrity fell below 20% 409 | -9/Materials | Destroyed by S-10 Pest with Light Assault Rifle Last Messages --------------- 00262_ Acquired 53 matter. 00263_ R-06 Scavenger collects Hvy. Assault Rifle. 00263_ Acquired 5 matter. 00265_ U-05 Engineer builds a Wall. 00267_ R-06 Scavenger collects Lgt. Treads. 00302_ Lgt. Assault Rifle destroyed. 00303_ Slammed into G-34 Mercenary. 00321_ K-01 Serf collects debris. 00347_ Slammed into T-07 Excavator. 00351_ Acquired Lgt. Ion Engine. 00353_ Acquired Seismic Analyzer. 00355_ Acquired Spread Laser. 00375_ Slammed into S-10 Pest. 00376_ S-10 Pest destroyed. 00377_ Acquired 20 matter. 00377_ Slammed into G-34 Mercenary. 00377_ Lgt. Ion Engine destroyed. 00378_ Slammed into S-10 Pest. 00379_ Acquired Flight Unit. 00381_ Acquired Lgt. Ion Engine. Map ----- +----------------------------------------------------+ | ?????????????????????????????????# [*! # ## | | ?????????????????????????????????# * ## # | | ?????????????????????????????????# [ ## # | | ?????????????????????????????????# ## + | | ?????????????????? ?????????????# "Y" ## # | | ??????????????????""?????????????# """ ## ## | | ???????????????# ?""????????????# ## ## | | ???????????????#! """ ##################+### # | | ???????????????# # # | | ??????????????????""" + T + | | ??????????????????""" # # | | ??????????????????????# g############/### # | | ??????????????????????# s#?????# ## ## | | ??????????????????????# #?????# """"" ## #? | | ??????????????????????# g #?????# """"" ## #? | | ??????????????????????# #?????# """"" ## #? | | ??????????????????????# #?????# ## #? | | ??????????????????????# k#?????# """"" ## #? | | ?????????????##########/#s #?????# """"" #? #? | | ?????????????# # #?????# """"" #? ? | | ?????????????# """ # #?????# #? = ? | | ?????????????# """"" # a#?????##########? ? | | ?????????????# """"" !# #????????????????? ? | | ?????????????# """"" # #????????????????? ??? | | ?????????????# """ + #????????????????????? | | ?????????????# #@ #????????????????????? | | ?????????????############ #????????????????????? | | ???????????????????????? #????????????????????? | | ???????????????????????? k #????????????????????? | | ??????????????????????? #????????????????????? | | ???????????????????????## #????????????????????? | | ????????????????????????# +????????????????????? | | ????????????????????????# #????????????????????? | | ????????????????????????# #????????????????????? | | ????????????????????????? #????????????????????? | | ????????????????????????? #????????????????????? | | ????????????????????????? #????????????????????? | | ????????????????????????? #????????????????????? | | ????????????????????????? #????????????????????? | | ????????????????????????? #????????????????????? | | ????????????????????????? ?????????????????????? | | ?????????????????????????????????????????????????? | | ?????????????????????????????????????????????????? | | ?????????????????????????????????????????????????? | | ?????????????????????????????????????????????????? | | ?????????????????????????????????????????????????? | | ?????????????????????????????????????????????????? | | ?????????????????????????????????????????????????? | | ?????????????????????????????????????????????????? | | ?????????????????????????????????????????????????? | +----------------------------------------------------+ Best States ------------- Heat Dissipation 28 Energy Generation 10 Energy Capacity 125 Matter Stores 300 Matter Capacity 300 Sight Range 16 Terrain Scan Density 60 Evasion (%) 62 Item Schematics ----------------- None Robot Schematics ------------------ None Fabricated ------------ Nothing Alien Tech Used ----------------- None Achievements -------------- None Challenges ------------ None Game ------ Seed FlightNetworkCapacitor Manual? 0 Play Time 00:12:29 Cumulative 23.6 hours Start 2020.05.31 @ 19:58:38 End 2020.05.31 @ 20:10:04 Sessions 1 Manual Loads 0 Difficulty Rogue Special Mode None Game No. 32 Rogue 32 Adventurer 0 Explorer 0 Win Type - Total 0 Types 0/0/0/0/0/0/0 Lore% 20 Gallery% 23 Achievement% 17 Wizard Run 0 Options --------- ASCII 0 Keyboard 0 Movement Mouse Keybinds 0 Fullscreen 2 Font 24/Terminus Map View 113x50 Tactical HUD 1 Map Filters NONE Filters NONE Steam 1 RUN: 01a0f197-5149-4c41-91aa-4007ef77321e